bitfinex/quotes_ETHUSD_20260314
["timestamp","ask_amount","ask_price","bid_price","bid_amount"]
[1773497870686,1.20464511,2075.3,2075.0,0.45465323]
[1773497870892,1.70164505,2075.3,2075.0,0.45465323]
[1773497877594,1.20464511,2075.3,2075.0,0.0011]
[1773497877801,0.4698609,2075.2,2075.0,0.0011]
[1773497881607,0.4698609,2075.3,2075.0,0.0011]
[1773497881807,1.20441296,2075.7,2075.0,0.46781875]
[1773497882179,0.4698609,2075.6,2075.0,0.46781875]
[1773497883689,1.67438992,2075.5,2075.1,0.46671875]
[1773497883896,0.4698609,2075.5,2075.1,0.46671875]
[1773497884091,0.9698609,2075.5,2075.1,0.46671875]
[1773497885680,0.4698609,2075.5,2075.1,0.46671875]
[1773497886013,0.4698609,2075.6,2075.1,1.67145212]
[1773497886214,0.001,2075.8,2075.2,0.46671875]
[1773497886591,0.4698609,2075.7,2075.2,0.46671875]
[1773497888081,0.4698609,2075.5,2075.1,1.67147838]
[1773497888283,1.20447099,2075.6,2075.2,0.46671875]
[1773497889083,1.67433189,2075.6,2075.2,0.46671875]
[1773497891101,1.67522161,2075.8,2075.3,0.46671875]
[1773497892202,1.20536071,2075.8,2075.3,0.46671875]
[1773497892402,0.4698609,2075.7,2075.3,0.46671875]
[1773497895036,1.20447099,2075.6,2075.3,0.46671875]
[1773497895923,0.001,2075.5,2075.3,0.46671875]
[1773497902442,0.001,2075.5,2075.3,0.36671875]
[1773497904831,0.47467802,2075.5,2075.2,0.0011]
[1773497905213,0.47467802,2075.5,2075.1,1.55917816]
[1773497905514,0.47467802,2075.5,2075.2,0.45334479]
[1773497907246,0.47467802,2075.5,2075.0,0.45444479]
[1773497907247,0.47367802,2075.4,2075.0,0.45444479]
[1773497907453,0.47367802,2075.4,2075.0,0.0011]
[1773497907741,0.47367802,2075.4,2074.9,0.45334479]
[1773497908132,0.47367802,2075.4,2074.9,0.07905649]
[1773497908340,0.47467802,2075.3,2074.9,1.28393314]
[1773497908540,0.47467802,2075.3,2075.1,0.0011]
[1773497909150,0.001,2075.3,2075.0,0.45334479]
[1773497909327,0.001,2075.3,2075.1,0.45334479]
[1773497911469,0.001,2075.5,2075.2,0.45334479]
[1773497917832,0.001,2075.5,2075.3,0.45334479]
[1773497920530,0.001,2075.5,2075.4,0.0011]
[1773497922055,0.47467802,2075.5,2075.4,0.0011]
[1773497925062,0.47467802,2075.5,2075.2,0.45334479]
[1773497941383,1.68930456,2075.8,2075.3,0.46058599]
[1773497942180,0.48389165,2075.7,2075.3,0.46058599]
[1773497945492,1.68831332,2075.7,2075.3,0.46058599]
[1773497946487,1.20442167,2075.7,2075.3,0.46058599]
[1773497946782,0.48389165,2075.6,2075.3,0.46058599]
[1773497948287,0.48389165,2075.6,2075.4,0.0011]
[1773497950655,0.48389165,2075.6,2075.2,1.20466975]
[1773497953103,0.48489165,2075.8,2075.2,0.46058599]
[1773497953258,1.68925839,2075.8,2075.2,0.46058599]
[1773497954548,0.48489165,2075.8,2075.2,0.46058599]
[1773497954810,1.68924711,2075.8,2075.2,0.46058599]
[1773497955567,1.68924711,2075.8,2075.3,0.46058599]
[1773497958413,0.48489165,2075.8,2075.4,0.46058599]
[1773497961012,1.68925154,2075.8,2075.5,0.0011]
[1773497961382,0.001,2075.6,2075.5,0.0011]
[1773497961995,0.001,2075.6,2075.5,0.49591198]
[1773497969696,0.001,2075.6,2075.3,0.0011]
[1773497969697,0.46235938,2075.6,2075.3,0.0011]
[1773497969896,0.46235938,2075.6,2075.1,0.0011]
[1773497971320,0.46235938,2075.6,2075.1,1.20586079]
[1773497971818,1.66685926,2075.6,2075.1,0.0011]
[1773497972009,0.46135938,2075.5,2075.1,0.0011]
[1773497975107,0.46135938,2075.5,2075.3,0.0011]
[1773497977048,0.46135938,2075.5,2075.1,1.20586121]
[1773497979134,0.46135938,2075.5,2075.1,0.0011]
[1773497979731,0.46135938,2075.4,2075.1,0.0011]
[1773497987538,0.46135938,2075.4,2075.3,0.0011]
[1773497990238,1.20549762,2075.6,2075.3,0.0011]
[1773497990239,0.49104966,2075.6,2075.3,0.0011]
[1773497990542,0.49104966,2075.6,2075.3,0.30994592]
[1773497997542,0.49104966,2075.6,2075.3,0.0011]
[1773498001451,0.49104966,2075.6,2075.3,0.30994592]
[1773498001637,0.001,2075.6,2075.3,0.30994592]
[1773498003653,0.001,2075.8,2075.6,0.30884592]
[1773498003842,0.0002,2075.8,2075.6,0.30884592]
[1773498005534,0.0002,2075.8,2075.5,1.20452902]
[1773498005855,0.0002,2075.8,2075.5,0.30884592]
[1773498005856,0.45825184,2075.8,2075.5,0.30884592]
[1773498006657,0.45825184,2075.8,2075.5,1.51337205]
[1773498014966,0.45825184,2075.8,2075.5,1.51447205]
[1773498015365,0.001,2075.6,2075.5,1.51447205]
[1773498015866,0.0002,2075.8,2075.6,1.51330951]
[1773498018267,0.0002,2075.8,2075.7,0.30884592]
[1773498019064,0.45905184,2076.2,2075.7,0.30884592]
[1773498019274,1.66318278,2076.2,2075.7,0.30884592]
[1773498020164,1.66320276,2076.2,2075.7,0.30884592]
[1773498020869,1.66320276,2076.2,2075.8,0.30884592]
[1773498023056,0.4915443,2076.1,2075.8,0.30884592]
[1773498023364,0.001,2076.2,2075.9,0.30884592]
[1773498023567,0.4925443,2076.2,2075.9,0.30884592]
[1773498026876,0.4925443,2076.2,2075.9,1.51313852]
[1773498027451,0.001,2076.2,2076.0,0.30884592]
[1773498028272,0.4915443,2076.5,2076.0,0.30884592]
[1773498029377,0.5,2076.3,2076.1,1.51302683]
[1773498030557,0.5,2076.3,2076.1,0.30884592]
[1773498031686,0.5,2076.3,2076.1,1.5130065]
[1773498031980,0.4915443,2076.5,2076.2,0.30884592]
[1773498032172,0.4925443,2076.6,2076.2,0.30884592]
[1773498032483,1.69643738,2076.6,2076.2,0.30884592]
[1773498034687,0.4915443,2076.5,2076.2,0.30884592]
[1773498036788,0.4915443,2076.5,2076.2,1.51296722]
[1773498036982,0.4915443,2076.5,2076.2,0.30884592]
[1773498037878,0.4915443,2076.5,2076.2,1.5129267]
[1773498039491,0.001,2076.6,2076.3,0.30884592]
[1773498039690,0.4915443,2076.7,2076.3,0.30884592]
[1773498039870,0.4915443,2076.7,2076.4,0.30994592]
[1773498040794,0.4915443,2076.8,2076.4,0.30994592]
[1773498040998,0.4915443,2076.9,2076.4,0.30994592]
[1773498043300,1.69526747,2076.9,2076.4,1.51391556]
[1773498043495,1.69526747,2076.9,2076.5,0.30884592]
[1773498043813,1.69526747,2076.9,2076.1,0.0011]
[1773498043814,0.4915443,2076.8,2076.1,0.0011]
[1773498043961,1.96560678,2076.9,2075.9,0.0011]
[1773498043962,0.4915443,2076.4,2075.9,0.0011]
[1773498044166,0.4915443,2076.4,2075.6,1.20554365]
[1773498045494,0.4915443,2076.2,2075.6,1.20554365]
[1773498046271,0.4915443,2076.2,2075.6,0.0011]
[1773498047495,6.48124179,2076.4,2075.6,1.51550694]
[1773498047496,0.4915443,2076.1,2075.6,1.51550694]
[1773498047698,0.4915443,2076.1,2075.7,0.30994592]
[1773498049695,0.4915443,2076.1,2075.7,1.51434044]
[1773498052003,0.4915443,2076.1,2075.9,0.0011]
[1773498063310,1.20409589,2076.3,2075.9,0.31104592]
[1773498063311,0.47141026,2076.3,2075.9,0.31104592]
[1773498064713,1.67548241,2076.3,2075.9,0.31104592]
[1773498064894,0.47141026,2076.2,2075.9,0.31104592]
[1773498065293,0.47141026,2076.2,2075.9,0.0011]
[1773498069215,0.47141026,2076.1,2075.9,0.0011]
[1773498069398,1.6756204,2076.1,2075.6,0.31214592]
[1773498069582,0.47141026,2076.0,2075.6,0.31214592]
[1773498071622,0.47141026,2076.0,2075.7,0.31104592]
[1773498071991,0.47141026,2076.0,2075.6,1.20553082]
[1773498073285,0.47141026,2075.9,2075.6,1.20553082]
[1773498076719,0.47141026,2075.9,2075.6,0.0011]
[1773498077621,0.47141026,2076.1,2075.6,0.31214592]
[1773498078011,1.67559237,2076.1,2075.6,0.31214592]
[1773498078619,1.20418211,2076.1,2075.6,0.31214592]
[1773498078814,0.47141026,2076.0,2075.6,0.31214592]
[1773498079532,0.47141026,2076.0,2075.8,0.0011]
[1773498082098,0.48964513,2075.9,2075.8,0.0011]
[1773498091238,0.49064513,2075.9,2075.8,0.0011]
[1773498093920,1.69494206,2075.9,2075.8,0.0011]
[1773498094116,0.48964513,2075.8,2075.6,0.0011]
[1773498096823,1.69400991,2075.8,2075.6,0.0011]
[1773498097826,0.48964513,2075.7,2075.6,0.0011]
[1773498102854,0.49064513,2075.7,2075.6,0.0011]
[1773498110362,0.001,2075.7,2075.6,0.0011]
[1773498110826,0.001,2075.7,2075.6,0.31324592]
[1773498111266,0.001,2075.7,2075.6,0.0011]
[1773498112448,0.001,2075.9,2075.7,0.31114592]
[1773498112933,0.46889851,2075.9,2075.6,0.31224592]
[1773498114863,0.46889851,2075.9,2075.8,0.0011]
[1773498119164,0.001,2075.9,2075.8,0.0011]
[1773498121841,0.46889851,2075.9,2075.8,0.0011]
[1773498122471,0.001,2075.9,2075.8,0.31224592]
[1773498122676,0.001,2076.1,2075.8,0.31224592]
[1773498125363,0.001,2076.1,2075.9,0.31014592]
[1773498126754,0.001,2076.1,2075.8,0.0011]
[1773498126755,0.46789851,2076.0,2075.8,0.0011]
[1773498127070,0.46789851,2076.0,2075.7,0.31014592]
[1773498127255,0.46789851,2076.0,2075.8,0.0011]
[1773498127457,0.001,2075.9,2075.8,0.0011]
[1773498127667,0.46889851,2075.9,2075.8,0.0011]
[1773498127876,0.46889851,2075.9,2075.6,0.0011]
[1773498128981,0.46789851,2075.8,2075.6,0.0011]
[1773498129152,0.46789851,2075.8,2075.5,0.0011]
[1773498129488,0.46789851,2075.8,2075.5,0.0022]
[1773498130584,0.46789851,2075.7,2075.5,0.0011]
[1773498131279,0.46789851,2075.7,2075.5,0.0022]
[1773498132980,0.46789851,2075.7,2075.6,0.0011]
[1773498139589,0.46789851,2075.7,2075.5,0.0011]
[1773498139791,0.46789851,2075.7,2075.6,0.0011]
[1773498143996,0.47178367,2075.9,2075.6,0.0011]
[1773498145113,0.47178367,2075.9,2075.6,0.31124592]
[1773498145269,0.47178367,2075.9,2075.5,0.0011]
[1773498145270,0.001,2075.9,2075.7,0.31234592]
[1773498145598,0.001,2075.9,2075.7,0.31124592]
[1773498145792,0.001,2075.9,2075.6,0.0011]
[1773498146099,0.001,2075.9,2075.7,0.0011]
[1773498150902,1.20529693,2075.9,2075.8,0.0011]
[1773498156009,1.20529693,2075.9,2075.8,0.0022]
[1773498158408,1.20529693,2075.9,2075.8,0.0011]
[1773498159898,0.001,2076.1,2075.8,0.39568277]
[1773498159899,1.2052175,2076.1,2075.8,0.39568277]
[1773498160083,1.2052175,2076.1,2075.9,0.0011]
[1773498160792,1.67600117,2076.1,2075.9,0.0011]
[1773498169613,1.67600117,2076.1,2075.8,0.39458277]
[1773498169786,1.67600117,2076.1,2075.9,0.0011]
[1773498170314,1.20520838,2076.1,2076.0,0.0011]
[1773498171013,0.001,2076.1,2076.0,0.0011]
[1773498171191,1.20518091,2076.1,2076.0,0.0011]
[1773498171393,1.69107064,2076.1,2076.0,0.0011]
[1773498173116,0.48588973,2076.0,2075.8,0.0011]
[1773498174995,0.001,2075.9,2075.8,0.0011]
[1773498187246,0.001,2075.9,2075.8,0.39468277]
[1773498188546,0.001,2076.1,2075.9,0.39358277]
[1773498190731,0.001,2076.1,2075.8,0.0011]
[1773498191029,0.001,2076.1,2075.8,0.39468277]
[1773498191503,0.001,2076.1,2075.8,1.5990364]
[1773498192425,0.001,2076.1,2075.8,0.39468277]
[1773498193040,0.48688973,2076.1,2075.8,0.39468277]
[1773498194830,0.48688973,2076.1,2075.8,1.59903167]
[1773498195241,0.001,2076.1,2075.9,0.39358277]
[1773498199546,0.001,2076.1,2076.0,0.0011]
[1773498199924,0.001,2076.1,2076.0,0.39468277]
[1773498208252,0.001,2076.1,2076.0,0.0011]
[1773498212251,0.47423454,2076.3,2076.0,0.39468277]
[1773498213763,0.47423454,2077.0,2076.0,0.39468277]
[1773498213925,4.81390865,2077.4,2076.3,0.39358277]
[1773498213926,0.47423454,2077.2,2076.3,0.39358277]
[1773498215438,0.47423454,2077.2,2076.5,0.39358277]
[1773498216064,0.47423454,2077.0,2076.6,0.39358277]
[1773498219346,1.67789631,2077.0,2076.6,0.39358277]
[1773498220662,0.47423454,2077.0,2076.6,0.39358277]
[1773498220825,0.47423454,2077.0,2076.7,0.39358277]
[1773498221025,0.47423454,2077.0,2076.6,0.39358277]
[1773498221744,1.67790289,2077.0,2076.6,0.39358277]
[1773498224433,0.001,2076.8,2076.6,0.39358277]
[1773498228166,0.47523454,2076.8,2076.4,1.59756017]
[1773498228372,0.47523454,2076.8,2076.2,1.598782]
[1773498229055,0.47423454,2076.6,2076.2,1.59879545]
[1773498229460,0.46938226,2076.8,2076.3,0.39358277]
[1773498230579,0.36938226,2076.8,2076.3,0.46980022]
[1773498231080,0.26938226,2076.8,2076.4,0.46980022]
[1773498232321,1.20372474,2076.9,2076.4,0.46980022]
[1773498232468,1.66555648,2077.0,2076.4,0.46980022]
[1773498232669,0.46185733,2077.0,2076.4,0.46980022]
[1773498233052,0.46185733,2077.0,2076.6,0.49609604]
[1773498233280,1.66552673,2077.0,2076.6,0.49609604]
[1773498234377,1.66549229,2077.1,2076.6,0.49609604]
[1773498234584,1.6654711,2077.1,2076.6,0.49609604]
[1773498235578,1.6654711,2077.1,2076.6,1.20388434]
[1773498235786,1.6654711,2077.1,2076.7,0.49609604]
[1773498238158,0.001,2076.9,2076.7,0.49609604]
[1773498238892,0.001,2076.9,2076.7,1.69991877]
[1773498239580,0.001,2076.9,2076.8,0.49609604]
[1773498241356,0.001,2076.9,2076.6,1.69994078]
[1773498241887,0.001,2076.9,2076.7,0.49609604]
[1773498248997,1.20358468,2077.2,2076.8,0.49609604]
[1773498249370,1.66544201,2077.2,2076.8,0.49529604]
[1773498250182,0.46185733,2077.2,2076.7,0.49609604]
[1773498251896,0.46185733,2077.2,2076.9,0.0011]
[1773498252397,1.66540539,2077.2,2076.9,0.0011]
[1773498252782,0.46185733,2077.1,2076.9,0.0011]
[1773498256002,0.46185733,2077.1,2076.8,0.49609604]
[1773498256206,0.46185733,2077.1,2076.6,0.0011]
[1773498256207,0.46185733,2076.9,2076.6,0.0011]
[1773498258304,4.81476879,2077.0,2076.6,0.0011]
[1773498258597,0.46185733,2076.8,2076.6,0.0011]
[1773498265292,0.46811158,2076.7,2076.6,0.0011]
[1773498270719,1.67194458,2076.7,2076.6,0.0011]
[1773498270896,0.46711158,2076.6,2076.4,0.0011]
[1773498271719,0.46711158,2076.6,2076.2,0.0011]
[1773498271915,0.46711158,2076.4,2076.2,0.0011]
[1773498272218,1.20394895,2076.5,2076.2,0.0011]
[1773498272397,1.67106053,2076.5,2076.2,0.0011]
[1773498275528,1.20394895,2076.5,2076.3,0.16877673]
[1773498275733,1.6719613,2076.7,2076.3,0.16877673]
[1773498276300,0.46711158,2076.6,2076.3,0.16877673]
[1773498277822,0.46711158,2076.6,2076.2,0.0011]
[1773498278212,0.46711158,2076.6,2076.4,0.0011]
[1773498278405,0.46811158,2076.6,2076.4,0.0011]
[1773498278728,0.46711158,2076.5,2076.4,0.0011]
[1773498279727,0.001,2076.6,2076.4,0.24186673]
[1773498280028,0.46811158,2076.7,2076.4,0.24186673]
[1773498280411,0.46811158,2076.7,2076.4,1.44585642]
[1773498281324,0.46811158,2076.7,2076.4,0.24186673]
[1773498281529,0.39612158,2076.7,2076.4,1.44587272]
[1773498282730,0.39612158,2076.7,2076.4,0.0011]
[1773498283102,0.46711158,2076.6,2076.4,0.0011]
[1773498283813,0.46711158,2076.6,2076.2,0.0011]
[1773498284860,0.46711158,2076.4,2076.2,0.0011]
[1773498286131,1.20393254,2076.6,2076.3,0.31285673]
[1773498286430,0.46711158,2076.6,2076.3,0.31285673]
[1773498287935,0.46711158,2076.9,2076.5,0.31285673]
[1773498288636,0.46711158,2076.9,2076.3,0.31285673]
[1773498289932,1.20377503,2076.8,2076.3,1.51690613]
[1773498290138,0.48591717,2076.7,2076.4,0.0011]
[1773498290342,0.48691717,2076.7,2076.4,0.0011]
[1773498291006,0.001,2076.7,2076.4,0.31395673]
[1773498293725,0.001,2076.7,2076.4,1.51795804]
[1773498293929,0.001,2076.7,2076.5,0.38484673]
[1773498294818,0.48106361,2076.7,2076.4,0.0011]
[1773498295142,0.48106361,2076.7,2076.4,0.38594673]
[1773498302150,0.48106361,2076.7,2076.5,0.0011]
[1773498302518,0.001,2076.7,2076.5,0.38594673]
[1773498303229,0.48006361,2076.9,2076.5,0.38594673]
[1773498303436,0.48006361,2077.3,2076.5,0.38594673]
[1773498304157,0.48006361,2077.3,2076.5,0.0011]
[1773498306358,0.48006361,2077.1,2076.5,0.0011]
[1773498308566,1.20365912,2077.0,2076.5,0.0011]
[1773498308767,0.48006361,2076.9,2076.5,0.0011]
[1773498311277,0.48006361,2076.7,2076.5,0.0011]
[1773498311475,1.20377503,2076.8,2076.5,0.38594673]
[1773498311652,1.68383864,2076.8,2076.5,0.38594673]
[1773498311850,1.20377503,2076.8,2076.5,0.0011]
[1773498312151,0.48006361,2076.7,2076.5,0.0011]
[1773498315353,0.48006361,2076.6,2076.5,0.0011]
[1773498320461,1.20377503,2076.8,2076.5,0.0011]
[1773498320757,0.48006361,2076.7,2076.5,0.0011]
[1773498322416,1.68391015,2076.7,2076.5,0.0011]
[1773498327068,0.46861866,2076.6,2076.5,0.0011]
[1773498327269,0.46861866,2076.6,2076.4,0.0011]
[1773498327984,0.46861866,2076.6,2076.3,0.0011]
[1773498327985,0.46861866,2076.5,2076.3,0.0011]
[1773498330372,1.67262559,2076.4,2076.3,0.0011]
[1773498330569,0.46861866,2076.4,2076.3,0.0011]
[1773498332398,0.46861866,2076.7,2076.3,0.38704673]
[1773498332776,0.46961866,2077.1,2076.4,0.76130545]
[1773498332980,0.46961866,2077.1,2076.5,0.38594673]
[1773498332981,1.67227813,2077.0,2076.5,0.38594673]
[1773498334804,1.67227813,2077.0,2076.6,0.38594673]
[1773498335413,0.001,2077.1,2076.6,0.38594673]
[1773498336213,0.46961866,2077.1,2076.6,0.38594673]
[1773498338306,0.46961866,2077.1,2076.7,1.203833]
[1773498338478,0.46961866,2077.1,2076.7,1.58977973]
[1773498339106,0.001,2076.9,2076.7,1.58977973]
[1773498339406,0.001,2076.9,2076.7,0.38594673]
[1773498351222,0.001,2076.8,2076.7,0.38594673]
[1773498353289,0.001,2076.8,2076.6,0.0011]
[1773498353493,0.48865439,2076.8,2076.6,0.0011]
[1773498361424,0.001,2076.8,2076.6,0.0011]
[1773498361634,0.001,2076.8,2076.6,0.38704673]
[1773498363122,0.001,2076.7,2076.6,0.38704673]
[1773498363435,0.001,2076.8,2076.6,0.38704673]
[1773498363436,0.001,2076.8,2076.7,0.38594673]
[1773498367742,0.001,2076.9,2076.7,1.58977973]
[1773498378424,0.001,2077.1,2076.8,0.46809267]
[1773498378631,0.48765439,2077.3,2076.8,0.46809267]
[1773498380163,0.48765439,2077.2,2076.7,1.203833]
[1773498380454,0.48765439,2077.2,2076.7,1.67192567]
[1773498381762,0.48765439,2077.2,2076.8,0.45417081]
[1773498382559,0.48765439,2077.2,2076.9,1.20371707]
[1773498382764,1.20347088,2077.4,2077.0,0.45417081]
[1773498382933,1.6919398,2077.4,2077.0,0.45417081]
[1773498383328,0.48846892,2077.4,2077.0,0.45417081]
[1773498383658,1.69190807,2077.4,2077.0,0.45417081]
[1773498386749,1.69190807,2077.4,2077.0,0.45527081]
[1773498387058,0.001,2077.1,2077.0,0.45527081]
[1773498387222,1.69190807,2077.4,2077.0,0.45527081]
[1773498387560,1.69190045,2077.4,2077.0,0.45527081]
[1773498390065,0.48846892,2077.4,2077.0,1.65891891]
[1773498391841,0.48846892,2077.5,2077.1,0.45417081]
[1773498392329,0.48846892,2077.5,2077.2,0.45417081]
[1773498395664,0.81616548,2077.6,2077.3,1.6576561]
[1773498395958,2.01947919,2077.6,2077.3,0.45417081]
[1773498397745,2.01947758,2077.6,2077.3,0.45417081]
[1773498397945,2.01947763,2077.6,2077.3,0.45417081]
[1773498399159,2.01947763,2077.6,2077.3,0.45527081]
[1773498399335,0.001,2077.4,2077.3,0.45527081]
[1773498400866,0.81616548,2077.6,2077.3,0.45527081]
[1773498401080,0.32769656,2077.6,2077.3,0.45527081]
[1773498406163,0.32769656,2077.6,2077.4,0.45417081]
[1773498407758,0.81616548,2077.6,2077.3,0.0011]
[1773498408673,0.81616548,2077.6,2077.3,0.45527081]
[1773498409374,0.32769656,2077.6,2077.3,0.45527081]
[1773498409545,0.32769656,2077.6,2077.4,0.48797011]
[1773498412075,0.27769656,2077.6,2077.4,0.48797011]
[1773498412779,0.49987781,2077.5,2077.0,0.0011]
[1773498413081,0.49987781,2077.4,2076.6,1.20498765]
[1773498413985,0.49987781,2077.2,2076.6,1.20498765]
[1773498414350,0.49987781,2077.2,2076.6,1.70457633]
[1773498416574,0.49987781,2077.1,2076.6,1.70457633]
[1773498421183,0.49987781,2077.1,2076.7,0.49958868]
[1773498422781,0.49987781,2077.1,2076.8,0.0011]
[1773498434775,0.49987781,2077.1,2077.0,0.0011]
[1773498435284,1.70340744,2077.3,2077.0,0.0011]
[1773498435594,0.49987781,2077.2,2077.0,0.0011]
[1773498441369,1.2035617,2077.2,2077.0,0.0011]
[1773498441568,0.4701827,2077.1,2077.0,0.0011]
[1773498445483,0.4701827,2077.3,2077.0,0.0011]
[1773498445871,1.20354323,2077.2,2077.0,0.0011]
[1773498446075,1.67372593,2077.2,2077.0,0.0011]
[1773498457228,0.4701827,2077.1,2077.0,0.0011]
[1773498471723,1.70121791,2077.2,2077.0,0.0011]
[1773498472532,0.49765064,2077.2,2077.0,0.0011]
[1773498472736,0.49765064,2077.3,2077.0,0.0011]
[1773498476654,0.001,2077.4,2077.0,0.45930548]
[1773498477644,1.20442848,2077.4,2077.0,0.45930548]
[1773498479253,0.001,2077.4,2077.0,0.45930548]
[1773498480755,0.001,2077.4,2077.0,1.66296328]
[1773498481060,1.48103429,2077.6,2077.1,0.45820548]
[1773498481261,1.48023429,2077.6,2077.2,0.45820548]
[1773498482974,0.27689656,2077.6,2077.2,0.45820548]
[1773498483260,1.7008117,2077.9,2077.4,0.45820548]
[1773498483832,1.20318986,2077.9,2077.4,0.45820548]
[1773498484166,0.49765064,2077.8,2077.3,0.3339739]
[1773498486065,1.20325359,2077.7,2077.0,2.74572433]
[1773498486258,0.49999999,2077.6,2077.0,1.20472433]
[1773498488070,1.20336943,2077.5,2077.0,1.20472433]
[1773498488864,1.15336943,2077.5,2077.0,1.20472433]
[1773498491776,1.70334757,2077.6,2077.0,1.20472433]
[1773498491969,1.20329049,2077.7,2077.0,1.20472433]
[1773498492144,1.70329048,2077.7,2077.0,1.20472433]
[1773498494181,1.70329048,2077.7,2077.2,0.0011]
[1773498494585,1.20429049,2077.7,2077.2,0.0011]
[1773498494882,0.49999999,2077.6,2077.2,0.0011]
[1773498497378,0.001,2077.7,2077.2,0.0011]
[1773498497554,1.20425808,2077.7,2077.2,0.0011]
[1773498497756,0.001,2077.7,2077.2,0.0011]
[1773498498282,0.50099999,2077.7,2077.2,0.0011]
[1773498499290,0.001,2077.7,2077.2,1.20464323]
[1773498507288,0.001,2077.7,2077.4,0.0011]
[1773498507478,0.001,2077.5,2077.4,0.0011]
[1773498507786,0.001,2077.7,2077.4,0.0011]
[1773498508661,1.20317791,2077.9,2077.4,0.0011]
[1773498508864,1.7031779,2077.9,2077.4,0.0011]
[1773498509588,0.49999999,2078.1,2077.4,0.0011]
[1773498510172,1.20307988,2078.0,2077.4,1.20452736]
[1773498510373,0.49999999,2077.9,2077.4,1.20452736]
[1773498515716,0.49999999,2077.8,2077.4,1.20452736]
[1773498518501,0.49999999,2077.8,2077.5,0.06793478]
[1773498519501,0.49999999,2077.8,2077.5,1.2713019]
[1773498520508,0.49999999,2077.8,2077.6,0.0011]
[1773498520873,0.001,2077.7,2077.6,0.0011]
[1773498521075,0.49999999,2077.8,2077.6,0.0011]
[1773498534415,1.20312486,2078.0,2077.6,0.06903478]
[1773498534416,1.68583337,2078.0,2077.6,0.06903478]
[1773498535416,0.48270851,2077.9,2077.6,0.06903478]
[1773498535711,0.48270851,2078.1,2077.6,1.27234489]
[1773498536422,0.48270851,2078.1,2077.7,0.45848104]
[1773498537319,1.68573265,2078.1,2077.7,0.45848104]
[1773498538617,0.48270851,2078.1,2077.7,1.66173326]
[1773498539706,1.68573458,2078.1,2077.7,1.66173326]
[1773498540523,0.48270851,2078.1,2077.7,1.66173326]
[1773498540822,1.2030069,2078.2,2077.8,0.45848104]
[1773498541324,0.86271573,2078.3,2077.8,0.45848104]
[1773498542497,2.06562503,2078.3,2077.9,0.45848104]
[1773498547100,2.06562503,2078.3,2077.8,1.66263038]
[1773498547101,0.48270851,2078.2,2077.8,1.66263038]
[1773498547321,0.48270851,2078.2,2077.8,0.45948104]
[1773498547606,0.48270851,2078.2,2077.8,0.001]
[1773498548629,0.48270851,2078.1,2077.8,0.001]
[1773498553743,0.48270851,2078.1,2077.8,0.45948104]
[1773498560744,0.48270851,2078.1,2078.0,0.001]
[1773498567943,0.46243163,2078.0,2077.8,0.001]
[1773498570341,0.46243163,2078.2,2077.8,0.48209563]
[1773498571152,1.20283328,2078.5,2077.8,0.48209563]
[1773498571323,0.46243163,2078.4,2077.8,0.48209563]
[1773498573855,0.46243163,2078.4,2078.0,0.48209563]
[1773498574359,0.002,2078.2,2078.0,0.48209563]
[1773498583268,0.002,2078.2,2078.0,1.68512761]
[1773498588669,0.46443163,2078.2,2078.0,0.001]
[1773498589667,0.47861601,2078.4,2078.0,0.001]
[1773498590242,0.47861601,2078.4,2078.0,0.45985244]
[1773498592069,0.47861601,2078.4,2078.0,1.66292438]
[1773498593973,0.47861601,2078.4,2078.1,0.48109563]
[1773498599085,0.48724373,2079.8,2078.3,0.48109563]
[1773498599277,0.48724373,2079.8,2078.6,0.48109563]
[1773498599278,0.85484927,2079.5,2078.6,0.48109563]
[1773498599450,0.48724373,2079.4,2078.6,0.48109563]
[1773498600465,0.48724373,2079.2,2078.6,0.48109563]
[1773498600652,2.77592949,2079.3,2078.8,0.42514404]
[1773498600847,1.57360179,2079.2,2078.8,0.42514404]
[1773498601074,0.48724373,2079.4,2079.0,0.42514404]
[1773498601272,0.48724373,2079.8,2079.3,1.18526421]
[1773498601588,0.48724373,2079.8,2079.4,0.42514404]
[1773498602781,0.48724373,2079.8,2079.5,0.42514404]
[1773498602950,0.002,2079.7,2079.5,0.42514404]
[1773498603154,0.48724373,2079.8,2079.5,0.42514404]
[1773498603155,1.6891668,2080.0,2079.5,0.42514404]
[1773498603366,0.48724373,2080.0,2079.5,0.42514404]
[1773498604474,1.68922459,2079.9,2079.5,0.42514404]
[1773498604671,0.48724373,2079.8,2079.1,2.38768056]
[1773498604869,0.48724373,2079.8,2079.2,0.42514404]
[1773498606276,0.48724373,2079.8,2079.4,0.42514404]
[1773498606582,0.48724373,2080.0,2079.4,0.42514404]
[1773498610392,1.68922459,2079.9,2079.4,0.42514404]
[1773498610589,0.48724373,2079.9,2079.5,0.42514404]
[1773498610790,1.2019073,2080.1,2079.6,0.42514404]
[1773498610994,1.20178164,2080.3,2079.8,0.49302456]
[1773498611296,2.04475815,2080.4,2079.8,0.49302456]
[1773498612001,0.48724373,2080.3,2079.5,0.49302456]
[1773498612365,0.48724373,2080.1,2079.4,1.69526804]
[1773498612800,0.48724373,2080.1,2079.3,1.69533342]
[1773498613417,0.48724373,2080.1,2079.4,0.49302456]
[1773498613878,1.68902568,2080.3,2079.6,0.49302456]
[1773498614594,1.68902568,2080.3,2079.8,0.49302456]
[1773498615107,0.48724373,2080.2,2079.8,0.49302456]
[1773498615272,0.48924373,2080.2,2079.8,0.49302456]
[1773498616699,0.48724373,2080.0,2079.7,0.49402456]
[1773498616894,0.48724373,2080.0,2079.7,0.001]
[1773498617199,1.20186529,2080.1,2079.7,0.49402456]
[1773498618201,1.69108819,2080.2,2079.8,0.49302456]
[1773498620011,0.48724373,2080.1,2079.7,0.001]
[1773498621703,1.70079657,2080.0,2079.7,0.001]
[1773498622491,0.4988735,2080.0,2079.7,0.001]
[1773498622686,0.4988735,2080.0,2079.7,0.48905881]
[1773498624284,1.70080941,2080.0,2079.7,0.48905881]
[1773498627486,0.4988735,2080.0,2079.7,0.48905881]
[1773498627797,1.20191152,2080.1,2079.7,0.48905881]
[1773498627997,1.70078502,2080.1,2079.7,0.48905881]
[1773498628397,0.4988735,2080.0,2079.7,0.48905881]
[1773498628609,1.70083096,2080.0,2079.7,0.48905881]
[1773498628917,0.4988735,2079.9,2079.7,0.001]
[1773498630418,0.4988735,2079.9,2079.3,1.69035359]
[1773498630714,0.4988735,2079.7,2079.3,0.48805881]
[1773498631420,0.4988735,2079.7,2079.3,1.69037731]
[1773498631808,0.4988735,2079.7,2079.3,1.69037469]
[1773498632008,0.4988735,2079.7,2079.4,0.48805881]